bitfinex-derivatives/quotes_ETHF0:USTF0_20240928
["timestamp","ask_amount","ask_price","bid_price","bid_amount"]
[1727493031769,2.31183004,2703.2,2702.9,0.36988]
[1727493031969,0.36984,2703.2,2702.9,0.75688]
[1727493032171,0.36984,2703.2,2703.0,0.3735]
[1727493033188,0.36985,2703.1,2703.0,0.3735]
[1727493034574,3.2078,2703.2,2703.0,0.3735]
[1727493034976,0.36985,2703.1,2703.0,0.3735]
[1727493042383,0.36984,2703.2,2703.0,0.3735]
[1727493042690,0.36985,2703.1,2703.0,0.3735]
[1727493046191,0.36984,2703.2,2703.0,0.3735]
[1727493048188,3.5951,2703.3,2703.1,1.69984]
[1727493048391,3.2078,2703.3,2703.1,2.09174]
[1727493048699,3.2078,2703.3,2703.2,0.38]
[1727493049485,3.2078,2703.3,2703.2,0.74983]
[1727493049685,0.74049,2703.5,2703.2,0.74983]
[1727493049983,11.37938004,2703.6,2703.2,2.07983]
[1727493050189,0.3698,2703.5,2703.2,1.71]
[1727493050697,0.3698,2703.5,2703.2,2.07983]
[1727493050996,5.30939,2703.6,2703.2,2.07983]
[1727493051189,0.36979,2703.5,2703.2,2.07983]
[1727493051392,4.9396,2703.6,2703.2,2.07983]
[1727493051393,5.30939,2703.6,2703.2,2.07983]
[1727493051588,4.9396,2703.6,2703.3,0.36982]
[1727493051788,3.6096,2703.6,2703.4,0.381]
[1727493052093,3.97939,2703.6,2703.4,0.381]
[1727493052295,3.6096,2703.6,2703.5,0.3896]
[1727493052788,3.97938,2703.6,2703.5,0.3896]
[1727493054082,7.3088,2703.6,2703.5,0.3896]
[1727493054280,3.6096,2703.6,2703.5,0.3896]
[1727493054491,7.3088,2703.6,2703.5,0.3896]
[1727493054685,3.6096,2703.6,2703.5,0.3896]
[1727493054879,7.3088,2703.6,2703.5,0.3896]
[1727493055892,7.67858,2703.6,2703.5,0.3896]
[1727493056078,4.47078,2703.6,2703.5,0.3896]
[1727493056484,7.67858,2703.6,2703.5,0.3896]
[1727493057794,7.3088,2703.6,2703.5,0.3896]
[1727493057989,3.6096,2703.6,2703.5,0.3896]
[1727493059086,3.81345525,2703.7,2703.5,0.3896]
[1727493059087,3.41675525,2703.7,2703.5,0.75939]
[1727493059291,3.41675525,2703.7,2703.5,1.13169]
[1727493060013,3.41675525,2703.7,2703.5,0.7619]
[1727493060382,3.41675525,2703.7,2703.5,1.13169]
[1727493060688,3.41675525,2703.7,2703.5,0.7619]
[1727493061497,5.8442428,2703.7,2703.5,1.13169]
[1727493061693,1.9370664,2703.6,2703.5,1.13169]
[1727493062092,1.9370664,2703.6,2703.5,0.7619]
[1727493062794,1.9370664,2703.6,2703.5,1.13169]
[1727493063199,1.9370664,2703.6,2703.5,0.7619]
[1727493063501,1.9370664,2703.6,2703.5,1.13169]
[1727493064106,1.9370664,2703.6,2703.5,0.7619]
[1727493065796,5.35382165,2703.7,2703.5,0.7619]
[1727493068506,3.41675525,2703.7,2703.5,0.7619]
[1727493070394,3.41675525,2703.7,2703.5,1.13169]
[1727493070999,3.41675525,2703.7,2703.5,0.7619]
[1727493073297,3.41675525,2703.7,2703.5,2.0919]
[1727493073497,3.2078,2703.9,2703.7,0.36977]
[1727493073704,0.3729,2704.0,2703.8,2.10684]
[1727493073905,0.3729,2704.0,2703.9,0.4064]
[1727493074102,3.2078,2704.2,2703.9,0.4064]
[1727493074103,3.2078,2704.2,2703.9,0.7927]
[1727493074298,3.2078,2704.2,2704.0,1.33]
[1727493074603,3.2078,2704.2,2704.0,1.69972]
[1727493074809,0.75449,2704.3,2704.0,1.33]
[1727493075101,3.96228,2704.3,2704.0,1.33]
[1727493075805,3.5926,2704.3,2704.0,1.33]
[1727493076401,3.5926,2704.3,2704.0,1.69972]
[1727493076600,1.9370664,2704.2,2704.0,1.69972]
[1727493076804,1.9370664,2704.2,2704.0,1.33]
[1727493077008,1.9370664,2704.1,2704.0,1.33]
[1727493077507,1.9370664,2704.2,2704.0,1.33]
[1727493078098,1.9370664,2704.1,2704.0,1.33]
[1727493078305,1.9370664,2704.2,2704.0,1.69972]
[1727493078797,1.9370664,2704.2,2704.0,1.33]
[1727493080096,2.6966664,2704.3,2704.1,0.36971]
[1727493080405,2.42748755,2704.4,2704.2,2.073]
[1727493080406,1.9370664,2704.4,2704.2,2.073]
[1727493080600,1.9370664,2704.4,2704.3,0.3717]
[1727493082406,1.9370664,2704.4,2704.3,0.74138]
[1727493082599,2.3311664,2704.5,2704.3,2.45318]
[1727493082801,2.3311664,2704.5,2704.4,0.36967]
[1727493083509,0.3941,2704.5,2704.3,2.45318]
[1727493083901,0.3941,2704.5,2704.3,2.0835]
[1727493084105,0.3941,2704.5,2704.3,2.45317]
[1727493087204,0.3941,2704.5,2704.3,2.0835]
[1727493088705,0.3941,2704.5,2704.3,2.45318]
[1727493088909,0.3892,2704.6,2704.3,2.45318]
[1727493091502,0.3892,2704.6,2704.3,2.0835]
[1727493092014,0.75885,2704.6,2704.3,2.0835]
[1727493092211,0.3892,2704.6,2704.3,2.45318]
[1727493095708,0.75884,2704.6,2704.3,2.0835]
[1727493096009,0.3892,2704.6,2704.3,2.0835]
[1727493096617,4.0868,2704.6,2703.5,0.96358756]
[1727493096817,4.5378,2703.9,2703.6,0.399]
[1727493097009,0.7765,2703.8,2703.4,0.36981]
[1727493097209,0.7765,2703.8,2703.4,1.7002]
[1727493097413,1.14626,2703.8,2703.4,1.7002]
[1727493097615,3.0833264,2703.8,2703.4,1.7002]
[1727493098613,1.14626,2703.8,2703.4,2.07001]
[1727493099517,1.14626,2703.8,2703.4,1.7002]
[1727493099917,1.14626,2703.8,2703.4,2.07]
[1727493102119,0.36977,2703.7,2703.4,1.7002]
[1727493102313,1.14626,2703.8,2703.4,2.07]
[1727493104523,1.14626,2703.8,2703.5,0.36979]
[1727493104524,0.7765,2703.8,2703.5,0.36979]
[1727493104823,1.14625,2703.8,2703.5,0.36979]
[1727493105217,1.14625,2703.8,2703.4,2.07]
[1727493105725,1.14625,2703.8,2703.5,0.36979]
[1727493106820,0.7765,2703.8,2703.5,0.36979]
[1727493107319,0.7765,2703.8,2703.5,1.69979]
[1727493110025,1.14625,2703.8,2703.5,1.69979]
[1727493111321,0.7765,2703.8,2703.5,1.69979]
[1727493112624,0.7765,2703.8,2703.6,0.36977]
[1727493113034,0.7765,2703.8,2703.7,0.3816]
[1727493117325,0.7765,2703.8,2703.7,0.7582]
[1727493117734,3.2078,2703.9,2703.7,1.12797]
[1727493118527,3.2078,2703.9,2703.7,2.45797]
[1727493119729,3.2078,2703.9,2703.7,2.45796]
[1727493120541,3.57754,2703.9,2703.7,2.45796]
[1727493121441,3.2078,2703.9,2703.7,2.45796]
[1727493121643,3.2078,2703.9,2703.8,0.36975]
[1727493122136,3.2078,2703.9,2703.7,2.45796]
[1727493125939,3.2078,2704.2,2703.7,2.0882]
[1727493126156,3.2078,2704.2,2703.9,1.33]
[1727493126331,3.2078,2704.2,2704.0,0.36972]
[1727493126642,3.2078,2704.2,2704.0,0.76722]
[1727493127033,3.2078,2704.2,2704.0,0.3975]
[1727493127034,3.5775,2704.2,2704.0,0.3975]
[1727493128035,0.36971,2704.1,2704.0,0.3975]
[1727493128338,0.36974,2703.9,2703.7,1.7066]
[1727493128544,3.2078,2703.8,2703.7,2.07637]
[1727493128742,0.7531,2704.0,2703.7,2.07635]
[1727493129045,1.12283,2704.0,2703.7,2.07636]
[1727493129539,0.7531,2704.0,2703.7,2.07636]
[1727493130043,1.12283,2704.0,2703.7,2.07636]
[1727493130645,1.12283,2704.0,2703.7,1.7066]
[1727493130942,1.12283,2704.0,2703.7,2.07637]
[1727493131238,0.7531,2704.0,2703.8,0.36975]
[1727493131439,1.12283,2704.0,2703.7,2.07636]
[1727493131939,0.7531,2704.0,2703.7,2.07636]
[1727493132236,1.12283,2704.0,2703.7,2.07636]
[1727493132937,0.7531,2704.0,2703.7,2.07636]
[1727493133242,1.12283,2704.0,2703.7,2.07636]
[1727493133431,0.7531,2704.0,2703.7,2.07636]
[1727493133630,3.2078,2703.8,2703.7,2.07636]
[1727493134046,1.12283,2704.0,2703.7,2.07636]
[1727493134349,1.12283,2704.0,2703.7,2.07637]
[1727493134741,1.12283,2704.0,2703.7,1.7066]
[1727493135134,0.7531,2704.0,2703.8,0.36975]
[1727493135541,0.7531,2704.0,2703.9,0.383]
[1727493135740,0.3793,2704.0,2703.9,0.383]
[1727493136137,0.3793,2704.0,2703.9,1.713]
[1727493136439,0.76661,2704.2,2703.9,2.08274]
[1727493136642,0.3969,2704.2,2704.0,0.36972]
[1727493136839,2.3339664,2704.2,2704.0,0.36972]
[1727493137036,2.7036664,2704.2,2703.9,2.08273]
[1727493138349,1.9370664,2704.1,2703.9,2.08273]
[1727493138849,2.3339664,2704.2,2704.0,0.36972]
[1727493139140,2.3339664,2704.2,2704.0,0.36973]
[1727493139449,1.9370664,2704.1,2703.9,2.08273]
[1727493140444,1.9370664,2704.1,2704.0,0.36973]
[1727493140847,1.9370664,2704.1,2703.9,1.713]
[1727493141046,1.9370664,2704.1,2704.0,0.36973]
[1727493141438,2.82438755,2704.2,2703.9,2.08273]
[1727493141639,1.9386057,2704.0,2703.9,2.08273]
[1727493141941,1.9386057,2704.1,2703.9,2.08273]
[1727493142141,1.9386057,2704.0,2703.9,2.08273]
[1727493143251,1.9386057,2704.1,2704.0,0.36973]
[1727493143442,2.82438755,2704.2,2703.9,1.713]
[1727493143642,2.82438755,2704.2,2703.9,2.08273]
[1727493143643,1.93902545,2704.0,2703.9,2.08273]
[1727493143937,0.3969,2704.2,2704.0,0.36972]
[1727493144246,0.3969,2704.2,2703.9,3.04782658]
[1727493145050,0.7666,2704.2,2703.9,3.04782658]
[1727493145451,0.3969,2704.2,2704.0,0.36972]
[1727493148239,0.3969,2704.2,2703.9,2.67809658]
[1727493148542,0.3969,2704.2,2704.0,0.36972]
[1727493149553,0.3969,2704.2,2703.9,2.67809658]
[1727493149752,0.3969,2704.2,2704.0,0.36971]
[1727493150348,0.3969,2704.2,2703.9,2.67809658]
[1727493150554,0.3969,2704.2,2704.0,0.36972]
[1727493150747,0.3969,2704.2,2703.9,2.67809658]
[1727493151053,0.3969,2704.2,2704.0,0.36971]
[1727493151446,0.3969,2704.2,2704.1,1.69971]
[1727493152049,0.3969,2704.2,2704.1,5.0284]
[1727493152050,1.93868692,2704.2,2704.1,5.0284]
[1727493152349,3.2078,2704.4,2704.3,0.36968]
[1727493152350,5.14648692,2704.4,2704.3,0.36968]
[1727493153352,3.2078,2704.4,2704.3,0.36968]
[1727493154557,1.93868692,2704.5,2704.3,0.36968]
[1727493154856,1.93868692,2704.5,2704.4,1.69967]
[1727493156746,1.93868692,2704.5,2704.4,1.33]
[1727493156951,1.93868692,2704.5,2704.4,1.69967]
[1727493157352,1.93868692,2704.5,2704.4,1.33]
[1727493159049,0.36964,2704.6,2704.4,1.33]
[1727493159648,3.96693,2704.7,2704.4,1.33]
[1727493159841,3.5973,2704.7,2704.4,1.33]
[1727493160041,0.36964,2704.6,2704.4,1.33]
[1727493160245,3.96694,2704.7,2704.4,1.69967]
[1727493160644,3.96694,2704.7,2704.4,1.33]
[1727493161549,3.96694,2704.7,2704.5,0.3689]
[1727493164355,3.5973,2704.7,2704.5,0.3689]
[1727493164554,3.96693,2704.7,2704.5,0.3689]
[1727493165256,3.96694,2704.7,2704.5,0.3689]
[1727493165755,3.5973,2704.7,2704.6,1.33]
[1727493165943,6.39441755,2704.7,2704.6,1.33]
[1727493170753,6.02478755,2704.7,2704.6,1.33]
[1727493170960,6.39441755,2704.7,2704.6,1.33]
[1727493171160,3.96693,2704.7,2704.6,1.33]
[1727493172460,3.5973,2704.7,2704.6,1.33]
[1727493173162,6.02478755,2704.7,2704.6,1.33]
[1727493173456,6.39441755,2704.7,2704.6,1.33]
[1727493174155,3.96693,2704.7,2704.6,1.33]
[1727493174358,3.5973,2704.7,2704.6,1.33]
[1727493174553,3.96693,2704.7,2704.6,1.33]
[1727493175350,3.5973,2704.7,2704.6,1.33]
[1727493175862,3.96693,2704.7,2704.6,1.33]
[1727493176161,0.75913,2704.7,2704.6,1.33]
[1727493176367,3.96693,2704.7,2704.6,1.33]
[1727493177153,3.5973,2704.7,2704.6,1.33]
[1727493179962,3.5973,2704.7,2704.5,0.3689]
[1727493180159,0.36964,2704.6,2704.5,0.3689]
[1727493180467,3.96694,2704.7,2704.5,0.3689]
[1727493181154,2.79712755,2704.6,2704.5,0.3689]
[1727493181668,6.02478755,2704.7,2704.5,1.6989]
[1727493182166,6.02478755,2704.7,2704.5,2.06856]
[1727493182766,6.02478755,2704.7,2704.5,1.6989]
[1727493183166,3.2078,2704.6,2704.5,1.6989]
[1727493183366,3.2078,2704.6,2704.5,2.06856]
[1727493183563,3.2078,2704.6,2704.5,1.6989]
[1727493184074,3.2078,2704.6,2704.5,1.33]
[1727493186773,5.63528755,2704.6,2704.5,1.33]
[1727493186976,3.2078,2704.6,2704.5,1.33]
[1727493187569,3.2078,2704.6,2704.5,1.69966]
[1727493188174,3.2078,2704.6,2704.5,1.33]
[1727493188472,3.2078,2704.6,2704.5,1.69966]
[1727493188675,3.2078,2704.6,2704.5,1.33]
[1727493190178,3.2078,2704.6,2704.5,1.69966]
[1727493190373,3.2078,2704.6,2704.5,1.33]
[1727493193173,3.2078,2704.6,2704.3,0.96509658]
[1727493193174,0.36967,2704.4,2704.3,0.96509658]
[1727493193379,0.36967,2704.4,2704.2,0.96509658]
[1727493193677,3.2078,2704.4,2704.2,0.96509658]
[1727493194374,3.57747,2704.4,2704.2,0.96509658]
[1727493194582,3.2078,2704.4,2704.2,0.96509658]
[1727493195268,3.2078,2704.4,2704.3,1.33]
[1727493195867,3.2078,2704.4,2704.3,2.29509658]
[1727493197382,5.1457994,2704.4,2704.3,2.29509658]
[1727493197868,3.2078,2704.4,2704.3,3.54108076]
[1727493198074,3.2078,2704.4,2704.3,2.29509658]
[1727493198481,3.2078,2704.4,2704.3,2.66477658]
[1727493199776,3.2078,2704.4,2704.3,4.39600335]
[1727493199980,3.2078,2704.4,2704.3,3.15004785]
[1727493202580,3.2078,2704.4,2704.3,1.69968]
[1727493203082,0.36964,2704.6,2704.4,0.36967]
[1727493203287,0.36964,2704.6,2704.5,1.33]
[1727493203583,3.2078,2704.6,2704.5,1.69965]
[1727493204283,3.57741,2704.9,2704.6,0.36963]
[1727493204483,3.57741,2704.9,2704.7,1.69963]
[1727493204675,3.57741,2704.9,2704.7,1.33]
[1727493204676,3.2078,2704.9,2704.7,1.33]
[1727493205082,0.36962,2704.8,2704.7,1.33]
[1727493206681,0.36962,2704.8,2704.6,0.36964]
[1727493207985,0.36964,2704.7,2704.5,1.33]
[1727493208186,3.2078,2704.6,2704.5,1.33]
[1727493208786,3.57744,2704.6,2704.5,1.33]
[1727493213692,3.2078,2704.6,2704.5,1.33]
[1727493214190,3.57744,2704.6,2704.5,1.33]
[1727493216394,6.00303551,2704.6,2704.5,1.33]
[1727493219501,3.57744,2704.6,2704.5,1.33]
[1727493227309,3.57744,2704.6,2704.5,2.29637858]
[1727493227310,5.14845859,2704.6,2704.5,2.29637858]
[1727493227707,5.51809859,2704.6,2704.5,2.29637858]
[1727493229409,5.51809859,2704.6,2704.5,0.96637858]
[1727493229815,0.36966,2704.5,2704.4,2.29637858]
[1727493230018,0.36966,2704.5,2704.4,3.542908]
[1727493231312,0.36966,2704.5,2704.4,4.0260973]
[1727493231519,0.36966,2704.5,2704.4,2.57652942]
[1727493232719,0.36966,2704.5,2704.4,3.54324843]
[1727493233720,0.36966,2704.5,2704.4,2.57667962]
[1727493234026,3.57746,2704.5,2704.4,2.57667962]
[1727493234414,3.57746,2704.5,2704.4,1.33]
[1727493236026,3.2078,2704.5,2704.4,1.33]
[1727493236421,3.57746,2704.5,2704.4,1.33]
[1727493237831,3.2078,2704.5,2704.4,1.33]
[1727493238126,3.57746,2704.5,2704.4,1.33]
[1727493238629,3.2078,2704.5,2704.4,1.33]
[1727493242228,3.2078,2704.5,2704.2,1.75666903]
[1727493242423,0.36967,2704.4,2704.3,0.96706878]
[1727493242623,0.36967,2704.4,2704.2,0.96706878]
[1727493242624,0.36968,2704.3,2704.2,0.96706878]
[1727493242928,3.39462903,2704.3,2704.1,2.29706878]
[1727493243120,5.55436726,2704.2,2704.1,2.29706878]
[1727493243326,5.55436726,2704.2,2704.1,2.29703133]
[1727493243327,5.55360906,2704.2,2704.1,2.29703133]
[1727493244337,5.55360906,2704.2,2704.1,1.33]
[1727493245033,5.92330906,2704.2,2704.1,1.33]
[1727493245739,5.55360906,2704.2,2704.1,1.33]
[1727493246036,3.6127,2704.2,2704.1,1.33]
[1727493248131,0.4049,2704.2,2704.1,1.33]
[1727493248336,3.6127,2704.2,2704.1,1.33]
[1727493249126,3.9824,2704.2,2704.1,1.33]
[1727493249829,3.9824,2704.2,2704.0,0.96703133]
[1727493249830,0.36971,2704.1,2704.0,0.96703133]
[1727493250035,0.36973,2704.0,2703.9,0.96703133]
[1727493250437,0.36973,2704.0,2703.8,3.08343133]
[1727493250628,3.2078,2703.9,2703.8,3.08343133]
[1727493251145,3.2078,2703.9,2703.8,1.75343133]
[1727493251346,3.2078,2703.9,2703.8,3.08343133]
[1727493251550,3.2078,2703.9,2703.8,2.1164]
[1727493251843,3.57754,2703.9,2703.8,2.1164]
[1727493252941,3.2078,2703.9,2703.8,2.1164]
[1727493256550,3.57754,2703.9,2703.8,0.7864]
[1727493256749,3.57754,2703.9,2703.8,2.1164]
[1727493257057,3.57754,2703.9,2703.8,0.7864]
[1727493257639,5.51844906,2703.9,2703.8,0.7864]
[1727493260347,5.90424906,2703.9,2703.8,0.7864]
[1727493260548,5.90424906,2703.9,2703.8,0.3991]
[1727493261151,9.60264906,2703.9,2703.8,0.3991]
[1727493261746,10.52699906,2703.9,2703.8,0.3991]
[1727493261952,8.58609,2703.9,2703.8,0.3991]
[1727493263354,10.52159106,2703.9,2703.8,0.3991]
[1727493263951,10.52159106,2703.9,2703.6,8.97989711]
[1727493263952,0.36977,2703.7,2703.6,8.97989711]
[1727493264152,0.36979,2703.6,2703.5,1.33]
[1727493264450,3.57759,2703.6,2703.5,1.33]
[1727493269953,0.36979,2703.5,2703.4,0.3689]
[1727493270156,0.36979,2703.5,2703.4,1.6989]
[1727493275156,0.36979,2703.5,2703.4,0.3689]
[1727493275351,0.36979,2703.5,2703.4,1.6989]
[1727493278261,0.36979,2703.5,2703.3,0.7642]
[1727493278262,0.36981,2703.4,2703.3,0.3924]
[1727493278455,1.30813,2703.4,2702.9,2.49487]
[1727493278650,0.36985,2703.1,2703.0,0.3997]
[1727493306779,3.57765,2703.1,2703.0,0.3997]
[1727493309880,4.50228,2703.1,2703.0,0.3997]
[1727493311786,9.53148,2703.1,2703.0,0.3997]
[1727493311990,11.95822903,2703.1,2703.0,0.3997]
[1727493312884,0.36989,2702.8,2702.7,0.7723]
[1727493313192,0.36989,2702.8,2702.7,2.1023]
[1727493313193,3.2078,2702.8,2702.7,2.1023]
[1727493314491,3.57769,2702.8,2702.7,2.1023]
[1727493314891,3.2078,2702.8,2702.7,2.1023]
[1727493316404,3.57769,2702.8,2702.7,0.7723]
[1727493317705,0.3699,2702.7,2702.6,0.96703133]
[1727493318011,0.36992,2702.6,2702.5,0.7606]
[1727493323409,0.36992,2702.6,2702.5,1.72763133]
[1727493323609,0.36992,2702.6,2702.5,0.7606]
[1727493324215,4.06992,2702.6,2702.5,0.7606]
[1727493324515,4.06992,2702.6,2702.5,0.3686]
[1727493325716,6.0080798,2702.6,2702.5,0.3686]
[1727493326510,7.3380798,2702.6,2702.5,0.3686]
[1727493326716,0.36996,2702.3,2702.2,0.7463]
[1727493326918,3.57776,2702.3,2702.2,0.3721]
[1727493328415,0.36997,2702.2,2702.1,0.3876]
[1727493328814,2.3081298,2702.2,2702.1,0.3876]
[1727493329014,3.6381298,2702.2,2702.1,0.3876]
[1727493329217,7.3389298,2702.2,2702.1,0.3876]
[1727493330222,6.9689598,2702.2,2701.7,1.33]
[1727493330414,3.57782,2701.9,2701.8,0.7658]
[1727493332921,4.90782,2701.9,2701.8,0.3674]
[1727493333326,4.90782,2701.9,2701.6,0.3984]
[1727493333327,0.37004,2701.7,2701.6,0.3984]
[1727493335124,0.75294,2701.7,2701.6,0.3984]
[1727493335326,0.37008,2701.4,2701.3,0.3698]
[1727493335524,0.37008,2701.4,2701.3,0.763]
[1727493335825,0.37008,2701.4,2701.3,0.3698]
[1727493336218,1.29529,2701.4,2701.3,0.3698]
[1727493336820,0.37012,2701.1,2701.0,0.3932]
[1727493337021,0.37012,2701.1,2701.0,0.763]
[1727493337224,3.2078,2701.2,2700.4,4.17483133]
[1727493337225,4.13309,2701.2,2700.4,4.17483133]
[1727493337419,3.57796,2700.9,2700.7,0.7474]
[1727493337823,3.2078,2700.9,2700.7,0.7474]
[1727493338024,3.57796,2700.9,2700.7,0.7474]
[1727493339027,1.70016,2700.8,2700.7,0.7474]
[1727493339222,2.08066,2700.8,2700.7,0.7474]
[1727493339926,2.08066,2700.8,2700.5,0.3763]
[1727493339927,0.37019,2700.6,2700.5,0.3763]
[1727493340231,3.2078,2700.6,2700.5,0.3763]
[1727493340630,3.57799,2700.6,2700.5,0.3763]
[1727493340929,3.2078,2700.6,2700.5,0.3763]
[1727493341633,3.57799,2700.6,2700.5,0.3763]
[1727493342030,3.2078,2700.6,2700.5,0.3763]
[1727493342333,3.57799,2700.6,2700.5,0.3763]
[1727493345822,3.2078,2700.6,2700.5,0.3763]
[1727493346023,3.57799,2700.6,2700.5,0.3763]
[1727493347836,0.37019,2700.6,2700.5,0.3763]
[1727493351736,0.3702,2700.5,2700.4,0.776]
[1727493351928,3.9572,2700.5,2700.4,0.776]
[1727493354440,5.2872,2700.5,2700.4,0.776]
[1727493354636,5.2872,2700.5,2700.4,0.3779]
[1727493367449,0.37023,2700.4,2700.2,0.4006]
[1727493367649,1.33,2700.3,2700.2,0.7826]
[1727493367854,1.70023,2700.3,2700.2,0.7826]
[1727493368258,1.70023,2700.3,2700.2,0.382]
[1727493369851,0.37025,2700.2,2700.1,0.4057]
[1727493370056,3.2078,2700.2,2700.1,0.4057]
[1727493370359,3.2078,2700.2,2700.1,0.77596]
[1727493372264,3.2078,2700.2,2700.1,0.4057]
[1727493372666,3.57805,2700.2,2700.1,0.7731]
[1727493372967,7.2933,2700.2,2699.2,5.01183133]
[1727493373171,3.2078,2699.9,2699.6,0.3674]
[1727493373469,3.2078,2699.9,2699.7,0.7567]
[1727493373661,0.3989,2699.8,2699.7,0.7567]
[1727493373862,0.7692,2699.8,2699.7,0.7567]
[1727493374555,0.37031,2699.7,2699.6,0.3674]
[1727493374756,0.37031,2699.7,2698.8,0.96703133]
[1727493374757,0.37036,2699.4,2698.8,0.96703133]
[1727493374961,1.33,2699.0,2698.9,0.7423]
[1727493375371,1.33,2699.0,2698.9,1.11272]
[1727493377174,1.33,2699.0,2698.9,0.7423]
[1727493377468,1.33,2699.0,2698.9,1.11272]
[1727493378058,1.33,2699.0,2698.9,0.7423]
[1727493378664,1.70041,2699.0,2698.9,0.7423]
[1727493379475,1.33,2699.0,2698.9,0.7423]
[1727493380875,1.70041,2699.0,2698.9,0.7423]
[1727493381274,1.33,2699.0,2698.9,0.7423]
[1727493382081,1.33,2699.0,2698.8,0.37044]
[1727493382273,1.33,2699.0,2698.9,1.1481]
[1727493382576,4.5378,2699.2,2699.0,0.37041]
[1727493382780,3.2078,2699.2,2699.1,0.3704]
[1727493383172,1.33,2699.3,2699.2,0.37038]
[1727493383473,1.33,2699.3,2699.0,0.3704]
[1727493383673,1.33,2699.3,2699.1,0.37039]
[1727493384276,1.33,2699.3,2699.0,0.3704]
[1727493384776,1.33,2699.3,2699.1,0.37039]
[1727493385074,1.33,2699.2,2698.9,1.1481]
[1727493385274,1.33,2699.2,2699.1,0.3704]
[1727493385475,4.5378,2699.2,2699.0,0.3704]
[1727493386173,1.33,2699.2,2699.0,0.3704]
[1727493386470,4.90818,2699.2,2699.0,0.37041]
[1727493386674,0.37041,2699.1,2698.9,1.1481]
[1727493386873,1.33,2699.0,2698.9,1.1481]
[1727493387864,1.70041,2699.0,2698.9,1.1481]
[1727493388069,1.70041,2699.0,2698.9,0.7696]
[1727493389770,1.33,2699.0,2698.9,0.7696]
[1727493390073,1.70041,2699.0,2698.9,0.7696]
[1727493394482,0.37043,2698.9,2698.6,0.75126]
[1727493394678,0.37043,2698.9,2698.7,0.3978]
[1727493394879,1.70044,2698.8,2698.7,0.3978]
[1727493395080,1.33,2698.8,2698.7,0.3978]
[1727493395577,1.70044,2698.8,2698.7,0.3978]
[1727493396277,0.37045,2698.7,2698.6,0.3722]
[1727493396482,0.74135,2698.7,2698.6,0.3722]
[1727493396986,0.3709,2698.7,2698.1,0.7869]
[1727493397177,1.33,2698.3,2698.2,0.3742]
[1727493400082,1.6983,2698.3,2698.2,0.3742]
[1727493400283,1.6983,2698.3,2698.2,0.74472]
[1727493400484,1.33,2698.3,2698.2,0.74472]
[1727493401087,0.3671,2698.5,2698.3,0.3705]
[1727493401280,1.33,2698.3,2698.2,0.74472]
[1727493404194,0.73758,2698.5,2698.2,0.74471]
[1727493404383,1.33,2698.3,2698.2,0.74471]
[1727493404787,0.4045,2698.6,2698.2,0.3742]
[1727493404987,1.33,2698.6,2698.2,0.3742]
[1727493405189,1.33,2698.5,2698.4,0.37048]
[1727493405697,0.3901,2698.8,2698.4,0.37048]
[1727493405883,3.5948,2698.9,2698.7,0.37045]
[1727493406080,3.5948,2698.9,2698.8,0.774]
[1727493406284,4.35083,2698.9,2698.5,0.37047]
[1727493406485,4.35083,2698.9,2698.4,0.7503]
[1727493406486,3.2078,2698.9,2698.4,0.7503]
[1727493406683,1.33,2698.8,2698.7,0.37045]
[1727493406885,1.33,2698.8,2698.6,0.37046]
[1727493407095,1.33,2698.7,2698.6,0.37046]
[1727493407489,1.33,2698.7,2698.5,0.37047]
[1727493407689,1.33,2698.6,2698.5,0.37047]
[1727493409797,1.33,2698.6,2698.5,0.74097]
[1727493413301,1.33,2698.6,2698.5,0.3705]
[1727493413494,1.33,2698.6,2698.5,0.74098]
[1727493415296,1.33,2698.6,2698.5,0.3705]
[1727493415695,0.37052,2698.2,2698.1,1.34903133]
[1727493415896,1.33,2698.2,2698.1,0.766]
[1727493416103,1.70052,2698.2,2698.1,0.766]
[1727493416497,1.70052,2698.2,2698.1,0.384]
[1727493416498,2.10792,2698.2,2698.1,0.384]
[1727493416699,0.37055,2698.0,2697.8,0.96703133]
[1727493416902,4.90835,2698.0,2697.9,0.3805]
[1727493418210,1.33,2698.0,2697.9,0.3805]
[1727493418897,1.33,2698.0,2697.9,0.7828]
[1727493420208,0.37056,2697.9,2697.7,5.46634119]
[1727493420514,1.33,2697.8,2697.7,5.46634119]
[1727493420805,1.70057,2697.8,2697.7,5.46634119]
[1727493421000,0.37059,2697.7,2697.6,0.386]
[1727493421197,0.37059,2697.7,2697.4,1.36933133]
[1727493421198,0.3836,2697.7,2697.4,1.36933133]
[1727493421397,4.5378,2697.6,2697.4,0.4023]
[1727493421602,4.90841,2697.6,2697.4,0.4023]
[1727493421808,0.37062,2697.5,2697.4,0.4023]
[1727493422311,3.26062,2697.5,2697.4,0.4023]
[1727493422610,2.89,2697.5,2697.4,0.4023]
[1727493423910,3.26062,2697.5,2697.4,0.4023]
[1727493424109,2.89,2697.5,2697.4,0.4023]
[1727493424414,2.89,2697.5,2697.2,0.75665]
[1727493424607,0.4043,2697.4,2697.2,1.15645]
[1727493424810,2.89,2697.3,2697.2,0.386]
[1727493425001,2.89,2697.3,2697.2,0.75666]
[1727493426106,2.89,2697.5,2697.2,0.386]
[1727493426314,2.89,2697.5,2697.4,0.37063]
[1727493427621,3.9957,2697.7,2697.2,0.386]
[1727493427622,6.8857,2697.7,2697.2,0.386]